bitfinex-derivatives/quotes_ETHF0:USTF0_20250502
["timestamp","ask_amount","ask_price","bid_price","bid_amount"]
[1746203497531,3.17147573,1858.7,1858.6,6.33314]
[1746203498733,0.42517573,1858.7,1858.6,6.33314]
[1746203500134,0.42517573,1858.7,1858.5,6.9038]
[1746203500434,6.4026,1858.6,1858.5,7.97955]
[1746203500836,6.82777573,1858.6,1858.5,7.97955]
[1746203501232,6.82777573,1858.6,1858.5,3.2078]
[1746203501536,6.82777573,1858.6,1858.5,4.28355]
[1746203502530,6.82777573,1858.6,1858.5,3.2078]
[1746203503241,6.82777573,1858.6,1858.5,4.28355]
[1746203503538,6.82777573,1858.6,1858.5,3.2078]
[1746203505138,6.82777573,1858.6,1858.5,4.28355]
[1746203505534,6.82777573,1858.6,1858.5,6.83485]
[1746203505728,6.82777573,1858.6,1858.5,3.2078]
[1746203505934,2.6894,1858.5,1858.3,1.07585]
[1746203506133,1.07587,1858.4,1858.3,1.07585]
[1746203506334,1.50104573,1858.4,1858.3,1.07585]
[1746203506533,0.42517573,1858.4,1858.3,4.28365]
[1746203506734,3.63076,1858.5,1858.4,1.07581]
[1746203506937,1.07576,1858.5,1858.4,6.30451]
[1746203507139,1.50118188,1858.5,1858.4,6.30451]
[1746203508134,1.07581,1858.4,1858.3,4.28364]
[1746203508332,1.0761,1857.9,1857.8,0.02]
[1746203508534,1.0761,1857.9,1857.6,7.02764231]
[1746203508535,1.07622,1857.7,1857.6,7.02764231]
[1746203508926,1.50164188,1857.7,1857.6,7.02764231]
[1746203509131,4.20694188,1857.7,1857.6,7.02764231]
[1746203510036,1.07628,1857.6,1857.4,13.97763002]
[1746203510237,6.98938,1857.6,1857.4,16.69163002]
[1746203510437,7.41480188,1857.6,1857.4,16.69163002]
[1746203510932,7.41480188,1857.6,1857.5,13.19722252]
[1746203511136,7.41480188,1857.6,1857.5,10.48322252]
[1746203511536,0.42542188,1857.6,1857.5,13.05342252]
[1746203511733,0.42542188,1857.6,1857.5,20.02225252]
[1746203511938,0.42542188,1857.6,1857.5,25.02225252]
[1746203512128,0.42542188,1857.6,1857.5,28.71825252]
[1746203512333,45.734,1858.4,1857.6,2.69056]
[1746203512633,9.8397,1858.3,1857.9,1.07609]
[1746203512834,1.07602,1858.1,1858.0,3.64624]
[1746203513237,1.07596,1858.2,1858.0,6.2662]
[1746203513442,4.9539,1858.3,1858.0,6.2662]
[1746203513740,4.9539,1858.3,1858.2,1.07593]
[1746203513933,3.878,1858.3,1858.2,1.07593]
[1746203514139,3.878,1858.3,1858.2,7.40013]
[1746203515136,4.95387,1858.3,1858.2,6.3242]
[1746203516139,4.95387,1858.3,1858.2,2.6282]
[1746203516644,3.878,1858.3,1858.2,3.70413]
[1746203517144,4.95387,1858.3,1858.2,3.70413]
[1746203517746,3.878,1858.3,1858.2,3.70413]
[1746203518239,3.878,1858.3,1858.2,7.40013]
[1746203518447,4.95387,1858.3,1858.2,7.40013]
[1746203518947,4.95387,1858.3,1858.2,6.3242]
[1746203519144,4.95387,1858.3,1858.2,2.6282]
[1746203519343,4.95387,1858.3,1858.2,3.70413]
[1746203521843,3.878,1858.3,1858.2,3.70413]
[1746203522248,3.878,1858.3,1858.2,7.40013]
[1746203522545,4.2836,1858.5,1858.4,1.07581]
[1746203522744,3.2078,1858.5,1858.4,1.07581]
[1746203523144,3.2078,1858.5,1858.4,4.77181]
[1746203524147,3.2078,1858.5,1858.4,45.57181]
[1746203524347,3.62859132,1858.5,1858.4,45.57181]
[1746203524950,0.42079132,1858.5,1858.4,45.57181]
[1746203525946,1.49654132,1858.5,1858.4,45.57181]
[1746203526249,0.42079132,1858.5,1858.4,50.57181]
[1746203526948,0.42079132,1858.5,1858.4,53.77961]
[1746203527350,0.42079132,1858.5,1858.4,56.55521]
[1746203527549,3.7377,1859.0,1858.9,1.07552]
[1746203528145,3.7377,1859.0,1858.9,2.7756]
[1746203530048,3.7377,1859.0,1858.9,3.85112]
[1746203530248,2.6622,1859.0,1858.9,3.85112]
[1746203530449,3.2078,1859.1,1859.0,1.07547]
[1746203530649,3.2078,1859.1,1859.0,3.78257]
[1746203531040,5.7323,1859.1,1859.0,3.78257]
[1746203531441,3.2078,1859.1,1859.0,3.78257]
[1746203531649,4.28321,1859.1,1859.0,3.78257]
[1746203531844,3.2078,1859.1,1859.0,3.78257]
[1746203532052,3.865,1859.2,1859.1,1.07541]
[1746203532345,4.94035,1859.2,1859.1,3.78251]
[1746203532547,1.07535,1859.2,1859.1,2.7071]
[1746203532748,1.07541,1859.1,1859.0,4.77145]
[1746203532948,1.07541,1859.1,1859.0,6.2729]
[1746203533148,1.07552,1858.9,1858.8,2.6232]
[1746203533352,4.28332,1858.9,1858.8,2.6232]
[1746203533752,4.28332,1858.9,1858.8,3.69878]
[1746203534047,3.2078,1858.9,1858.8,3.69878]
[1746203534255,1.07538,1859.2,1859.1,1.07536]
[1746203534449,3.2078,1859.5,1859.1,2.68847]
[1746203534750,1.07529,1859.3,1859.2,6.35451]
[1746203535146,1.07529,1859.3,1859.2,10.05051]
[1746203535749,4.93914,1859.6,1859.5,1.07518]
[1746203535948,7.67214,1859.6,1859.5,1.07518]
[1746203536152,7.67214,1859.6,1859.5,4.77118]
[1746203536649,3.2078,1859.7,1859.6,1.07512]
[1746203536950,3.2078,1859.7,1859.6,6.47792]
[1746203537652,4.28286,1859.7,1859.6,6.47792]
[1746203537951,3.2078,1859.7,1859.6,6.47792]
[1746203538751,4.28286,1859.7,1859.6,6.47792]
[1746203539657,4.28286,1859.7,1859.6,47.27792]
[1746203539953,4.28286,1859.7,1859.6,46.2028]
[1746203540553,4.28286,1859.7,1859.6,40.8]
[1746203540951,1.07512,1859.6,1859.5,4.77116]
[1746203541255,3.76152,1859.6,1859.5,7.29296]
[1746203541946,11.00611,1859.9,1859.6,1.07512]
[1746203541947,1.07511,1859.7,1859.6,1.07512]
[1746203542256,1.07511,1859.7,1859.6,3.63722]
[1746203543454,1.07511,1859.7,1859.6,2.5621]
[1746203543650,1.07512,1859.6,1859.5,4.77117]
[1746203543848,3.58332,1859.6,1859.5,3.696]
[1746203544253,1.07518,1859.5,1859.4,3.67792]
[1746203544552,3.58338,1859.5,1859.4,3.67792]
[1746203544851,3.58338,1859.5,1859.4,2.6027]
[1746203545050,3.58338,1859.5,1859.2,3.2078]
[1746203545051,1.07552,1859.0,1858.9,1.0755]
[1746203545247,1.07552,1859.0,1858.9,3.6315]
[1746203545446,3.2078,1859.3,1859.0,1.07543]
[1746203545447,1.07545,1859.1,1859.0,1.07543]
[1746203545651,1.07545,1859.1,1859.0,3.63143]
[1746203546152,1.07545,1859.1,1859.0,3.696]
[1746203546351,4.28325,1859.1,1859.0,3.696]
[1746203546657,9.28325,1859.1,1859.0,3.696]
[1746203547355,1.07547,1859.0,1858.9,1.07547]
[1746203547563,1.07554,1858.9,1858.8,1.07554]
[1746203547858,1.07558,1858.8,1858.7,2.6611]
[1746203548045,2.7181,1858.8,1858.5,40.8]
[1746203548251,1.07575,1858.5,1858.4,5.2867]
[1746203548445,1.07575,1858.5,1858.4,6.36251]
[1746203548651,4.28349,1858.7,1858.5,1.07575]
[1746203548854,9.6763,1858.9,1858.4,10.63731]
[1746203549054,2.7181,1858.8,1858.7,1.07564]
[1746203549453,4.92752,1858.9,1858.8,1.07558]
[1746203549654,6.5701,1858.9,1858.8,1.07558]
[1746203549963,7.64562,1858.9,1858.8,1.07558]
[1746203550455,7.64562,1858.9,1858.6,2.6611]
[1746203550456,4.28324,1859.1,1859.0,1.07547]
[1746203550659,2.7466,1859.1,1859.0,1.07547]
[1746203550864,4.92736,1859.2,1859.1,1.07541]
[1746203551762,4.92735,1859.2,1859.1,1.07541]
[1746203552451,3.852,1859.2,1859.1,1.07541]
[1746203552657,2.7466,1859.3,1859.2,1.07535]
[1746203553363,1.07524,1859.4,1859.3,1.07529]
[1746203554065,3.82694,1859.4,1859.3,1.07529]
[1746203554665,2.7517,1859.4,1859.3,1.07529]
[1746203554963,8.13498,1859.5,1859.4,1.07523]
[1746203555163,8.13498,1859.5,1859.4,4.77123]
[1746203555364,1.07508,1859.7,1859.6,1.07512]
[1746203555765,1.07512,1859.6,1859.5,3.61893]
[1746203556159,2.7517,1859.7,1859.6,1.07512]
[1746203556467,3.2078,1859.8,1859.7,1.07506]
[1746203556661,3.2078,1859.8,1859.7,6.23636]
[1746203557064,8.07568376,1860.3,1860.2,1.07477]
[1746203557065,4.28253,1860.3,1860.2,1.07477]
[1746203557262,6.79393,1860.3,1860.2,1.07477]
[1746203558155,5.7192,1860.3,1860.2,3.66237]
[1746203558670,7.58652,1860.5,1860.4,1.07466]
[1746203558968,1.07466,1860.4,1860.3,1.07466]
[1746203559767,4.92661,1860.5,1860.4,1.07466]
[1746203560066,7.68331,1860.5,1860.4,1.07466]
[1746203560768,7.0588,1860.8,1860.3,2.68679]
[1746203561072,2.7567,1860.7,1860.6,1.07454]
[1746203561471,3.83118,1860.7,1860.6,1.07454]
[1746203562174,2.7567,1860.7,1860.6,1.07454]
[1746203563468,1.07443,1860.8,1860.7,1.07443]
[1746203563667,3.65873,1860.8,1860.7,1.07443]
[1746203564585,1.07448,1860.7,1860.6,3.6931]
[1746203565675,6.86658,1860.8,1860.7,1.07448]
[1746203566475,5.7921,1860.8,1860.7,1.07448]
[1746203566670,6.86653,1860.8,1860.7,1.07448]
[1746203566874,1.07448,1860.7,1860.6,3.78463]
[1746203567077,3.70038,1860.7,1860.6,3.78463]
[1746203567268,2.6259,1860.7,1860.6,3.78463]
[1746203568377,3.70038,1860.7,1860.6,3.78463]
[1746203568673,3.2078,1860.8,1860.7,1.07448]
[1746203568875,4.28213,1861.0,1860.9,1.07437]
[1746203569269,6.86853,1861.0,1860.9,1.07437]
[1746203569875,5.7942,1861.0,1860.9,1.07437]
[1746203570275,6.86851,1861.0,1860.9,1.07437]
[1746203571870,1.07437,1860.9,1860.8,3.75288]
[1746203572070,3.68807,1860.9,1860.8,3.75288]
[1746203572270,1.07448,1860.8,1860.7,1.07445]
[1746203572471,1.07454,1860.6,1860.5,5.916]
[1746203572778,1.07454,1860.6,1860.5,6.9906]
[1746203573175,3.68824,1860.6,1860.5,6.9906]
[1746203573682,7.6137,1860.6,1860.1,3.1088]
[1746203573973,3.2078,1859.7,1858.6,24.46085255]
[1746203574177,3.2078,1858.9,1858.7,23.62464504]
[1746203574380,3.2078,1858.9,1858.7,26.83244504]
[1746203574675,4.28337,1858.9,1858.8,17.39501949]
[1746203575674,3.2078,1858.9,1858.8,20.60281949]
[1746203578278,4.28332,1858.9,1858.8,20.60281949]
[1746203578477,3.2078,1858.9,1858.8,20.60281949]
[1746203578780,3.2078,1858.9,1858.8,3.2078]
[1746203579177,4.28332,1858.9,1858.8,6.9038]
[1746203580783,4.28332,1858.9,1858.8,3.696]
[1746203581183,1.07558,1858.8,1858.7,2.6582]
[1746203582477,4.28336,1858.9,1858.7,6.94162]
[1746203582782,4.28337,1858.9,1858.7,5.866]
[1746203583174,4.28337,1858.9,1858.7,10.63763]
[1746203584482,4.28337,1858.9,1858.8,1.07558]
[1746203584783,1.07558,1858.8,1858.7,9.562]
[1746203585281,5.06758,1858.8,1858.7,6.3542]
[1746203586078,5.06758,1858.8,1858.7,2.6582]
[1746203586479,10.06758,1858.8,1858.7,2.6582]
[1746203586675,10.06758,1858.8,1858.7,1.44979]
[1746203586986,1.07593,1858.2,1858.1,5.1765]
[1746203587191,4.28373,1858.2,1858.1,8.3843]
[1746203587381,1.0761,1857.9,1857.8,3.993]
[1746203587578,1.0761,1857.9,1857.8,3.2078]
[1746203589274,1.0761,1857.9,1857.8,4.28396]
[1746203589981,1.0761,1857.9,1857.8,3.2078]
[1746203590281,1.0761,1857.9,1857.8,4.28396]
[1746203590585,1.0761,1857.9,1857.8,4.28391]
[1746203591187,4.2839,1858.0,1857.9,1.0761]
[1746203591888,3.2078,1858.0,1857.9,1.0761]
[1746203592987,4.28384,1858.0,1857.9,1.0761]
[1746203593184,3.2078,1858.0,1857.9,9.2839]
[1746203593885,12.2018,1858.0,1856.2,3.696]
[1746203594085,5.38117,1857.7,1856.6,2.6462]
[1746203594385,3.2078,1856.7,1856.6,2.6462]
[1746203594592,1.07657,1857.1,1856.7,1.07677]
[1746203594796,1.07668,1856.9,1856.8,5.3504]
[1746203594994,3.2078,1856.9,1856.8,5.3504]
[1746203595184,3.2078,1856.9,1856.8,5.90149608]
[1746203596085,3.2078,1857.1,1856.8,9.59749608]
[1746203596293,3.2078,1857.3,1856.9,2.5337]
[1746203596484,3.2078,1857.3,1857.2,1.07649]
[1746203596879,3.2078,1857.3,1857.2,1.62758608]
[1746203597085,3.2078,1857.3,1857.2,4.24709608]
[1746203597289,4.28425,1857.3,1857.2,3.696]
[1746203597589,4.28425,1857.3,1857.2,6.2297]
[1746203598392,3.2078,1857.3,1857.2,7.85730608]
[1746203600291,4.28425,1857.3,1857.2,6.2297]
[1746203601391,3.2078,1857.3,1857.2,7.30621]
[1746203601694,3.2078,1857.3,1857.2,7.85730608]
[1746203602198,4.28425,1857.3,1857.2,6.78079608]
[1746203602499,4.28425,1857.3,1857.2,6.2297]
[1746203603200,4.28425,1857.3,1857.2,2.5337]
[1746203604199,1.07668,1856.9,1856.8,2.7042]
[1746203604396,4.28448,1856.9,1856.8,2.7042]
[1746203605202,3.2078,1856.9,1856.8,8.02803608]
[1746203606293,4.28448,1856.9,1856.8,4.24709608]
[1746203606501,4.28448,1856.9,1856.8,3.696]
[1746203607198,4.28448,1856.9,1856.8,1.07674]
[1746203607401,4.28448,1856.9,1856.7,3.57255]
[1746203607402,1.07674,1856.8,1856.7,3.57255]
[1746203607700,4.28453,1856.9,1856.8,1.07674]
[1746203607902,3.2078,1856.9,1856.8,1.07674]
[1746203608200,3.2078,1856.9,1856.8,5.32383608]
[1746203608606,4.28448,1856.9,1856.8,3.696]
[1746203609196,1.07674,1856.8,1856.7,2.4958]
[1746203609698,1.07683,1856.7,1856.3,2.69255]
[1746203609897,3.2078,1855.9,1854.2,3.2078]
[1746203610095,3.2078,1855.1,1854.6,2.5071]
[1746203610294,3.2078,1855.0,1854.7,40.8]
[1746203610600,2.95790662,1855.2,1854.7,48.4688]
[1746203610803,2.95790662,1855.2,1855.1,1.07773]
[1746203610995,3.2078,1855.4,1855.3,1.07759]
[1746203611194,3.2078,1855.4,1855.2,2.708]
[1746203611395,3.2078,1855.4,1855.2,3.78564]
[1746203611591,0.02,1856.3,1855.3,4.461]
[1746203611797,3.2078,1855.6,1855.3,5.53856]
[1746203612103,0.42679864,1855.5,1855.4,8.74635]
[1746203612302,3.2078,1855.6,1855.3,3.696]
[1746203612503,2.69272,1856.3,1855.4,1.07752]
[1746203612504,6.76128,1855.9,1855.4,1.07752]
[1746203612701,3.2078,1855.6,1855.4,1.07752]
[1746203612903,4.71177113,1855.8,1855.4,1.07752]
[1746203613208,3.63445113,1855.8,1855.5,1.07749]
[1746203613394,3.63445113,1855.8,1855.6,1.07741]
[1746203613599,3.63445113,1855.8,1855.7,7.0072]
[1746203613892,0.42665113,1855.8,1855.7,8.08458]
[1746203614097,4.71177113,1855.8,1855.7,2.5452]
[1746203614298,3.63445113,1855.8,1855.7,2.5452]
[1746203614901,0.42665113,1855.8,1855.7,2.5452]
[1746203615102,3.63445113,1855.8,1855.7,2.5452]
[1746203616207,3.63445113,1855.8,1855.7,10.7032]
[1746203616510,3.63445113,1855.8,1855.7,11.78058]
[1746203617607,4.71177113,1855.8,1855.7,6.2412]
[1746203617813,3.63445113,1855.8,1855.2,7.17]
[1746203618014,3.2078,1855.4,1855.3,2.6224]
[1746203618214,4.28535,1855.4,1855.3,2.6224]
[1746203618411,3.63445113,1855.4,1855.3,7.0844]
[1746203618713,0.42665113,1855.4,1855.3,7.0844]
[1746203618910,4.71242101,1855.4,1855.3,2.6224]
[1746203619115,1.07761,1855.3,1855.2,2.708]
[1746203619313,1.50468101,1855.3,1855.2,2.708]
[1746203620212,6.50468101,1855.3,1855.2,3.696]
[1746203620515,0.42707101,1855.3,1855.2,4.77367]
[1746203620908,0.42707101,1855.3,1855.2,7.33557]
[1746203622404,3.2078,1855.6,1855.5,1.07749]
[1746203622610,3.2078,1855.6,1855.5,5.54149]
[1746203623007,3.63468379,1855.6,1855.5,5.54149]
[1746203623202,3.63468379,1855.6,1855.5,9.23749]
[1746203623810,0.42688379,1855.6,1855.5,17.44529]
[1746203624011,3.2078,1856.0,1855.9,1.07715]
[1746203624309,3.2078,1856.4,1855.9,10.36466]
[1746203624512,4.28466,1856.4,1856.3,1.07692]
[1746203624714,4.2847,1856.4,1856.2,1.07694]
[1746203624912,4.2847,1856.4,1856.3,2.5335]
[1746203625108,4.98936,1856.7,1856.3,2.5335]
[1746203625109,3.2078,1856.6,1856.3,2.5335]
[1746203625414,3.2078,1856.6,1856.5,1.07679]
[1746203626014,3.2078,1856.6,1856.5,1.07681]
[1746203626212,3.2078,1856.8,1856.6,1.07671]
[1746203626417,4.28448,1856.8,1856.7,1.07669]
[1746203626712,4.28436,1857.0,1856.6,6.9965]
[1746203626914,1.07656,1857.0,1856.8,1.07658]
[1746203627109,1.07663,1856.8,1856.7,2.6177]
[1746203628114,1.07663,1856.8,1856.7,6.3137]
[1746203628314,1.07663,1856.8,1856.7,7.39039]
[1746203629018,3.2078,1856.9,1856.7,6.3137]
[1746203629209,1.07648,1857.1,1857.0,1.0765]
[1746203629411,1.07654,1857.0,1856.7,3.696]
[1746203629611,4.28434,1857.0,1856.8,1.07663]
[1746203630014,3.2078,1857.0,1856.9,1.07657]
[1746203630213,4.28432,1857.0,1856.9,1.07657]
[1746203630716,1.07657,1856.9,1856.8,4.77259]
[1746203630918,1.07657,1856.9,1856.8,3.696]
[1746203631119,1.07657,1856.9,1856.7,1.07669]
[1746203631315,4.28443,1856.8,1856.7,1.07669]
[1746203631519,1.07675,1856.7,1856.6,1.07673]
[1746203631913,1.07675,1856.6,1856.5,5.53877]
[1746203632118,1.07675,1856.6,1856.5,9.23477]
[1746203632411,9.28455,1856.6,1856.5,3.696]
[1746203633013,11.57695,1856.6,1856.5,3.696]
[1746203633214,1.07692,1856.3,1856.2,2.4155]
[1746203633415,1.07692,1856.3,1856.2,3.49248]
[1746203633611,3.2078,1856.4,1856.1,3.2078]
[1746203633813,4.28472,1856.4,1856.3,1.07692]
[1746203634024,4.28472,1856.4,1856.1,3.2078]
[1746203634025,1.07695,1856.3,1856.2,1.07694]
[1746203634419,5.90006,1856.4,1855.9,1.0771]
[1746203634627,1.07715,1855.9,1855.8,2.4155]
[1746203635018,1.07715,1855.9,1855.8,3.49271]
[1746203635213,3.2078,1856.2,1855.8,7.4155]
[1746203635414,1.07706,1856.1,1855.9,1.07711]
[1746203635618,5.90027,1856.2,1855.8,3.49267]
[1746203635820,1.07715,1856.0,1855.9,1.07714]
[1746203636022,1.07715,1855.9,1855.8,3.49267]
[1746203636528,1.07714,1856.0,1855.9,1.07714]
[1746203636724,1.50150609,1856.0,1855.9,1.07714]
[1746203637130,1.50150609,1856.0,1855.9,4.77314]
[1746203638029,1.50150609,1856.0,1855.9,3.696]
[1746203638229,4.70930609,1856.0,1855.9,3.696]
[1746203639134,4.70930609,1856.0,1855.9,4.77315]
[1746203639525,3.63216609,1856.0,1855.9,4.77315]
[1746203640431,4.70926609,1856.0,1855.9,4.77315]
[1746203640926,3.63216609,1856.0,1855.9,4.77315]
[1746203641329,3.63216609,1856.0,1855.9,9.77315]
[1746203641924,3.63216609,1856.0,1855.9,4.77315]
[1746203644728,0.42436609,1856.0,1855.9,4.77315]
[1746203644934,1.07674,1856.7,1856.6,1.07672]
[1746203645328,1.07678,1856.6,1856.5,1.07676]
[1746203645525,1.07681,1856.5,1856.4,3.52764]
[1746203646121,3.2078,1856.6,1856.4,8.5799]
[1746203646321,4.28458,1856.6,1856.5,1.07681]
[1746203646535,4.28455,1856.6,1856.5,3.50991]
[1746203646735,3.2078,1856.6,1856.5,3.50991]
[1746203647132,1.07674,1856.7,1856.6,1.07675]
[1746203647730,3.2078,1856.8,1856.7,1.07669]
[1746203647938,3.2078,1856.8,1856.7,5.53069]
[1746203648131,3.2078,1856.8,1856.7,9.22669]
[1746203648324,4.28443,1856.8,1856.7,50.02669]
[1746203648530,3.2078,1856.8,1856.7,50.02669]
[1746203648837,4.28443,1856.8,1856.7,50.02669]
[1746203649238,3.2078,1856.8,1856.7,50.02669]
[1746203650145,3.2078,1856.8,1856.7,4.77269]
[1746203650438,9.28443,1856.8,1856.7,3.696]
[1746203650738,4.28443,1856.8,1856.7,3.696]
[1746203651040,4.28443,1856.8,1856.7,4.77269]
[1746203651635,4.28443,1856.8,1856.7,3.696]
[1746203651937,4.28443,1856.8,1856.7,4.77269]
[1746203652136,4.28443,1856.8,1856.7,1.07669]
[1746203652436,3.2078,1856.8,1856.7,1.07669]
[1746203652638,4.28443,1856.8,1856.7,1.07669]
[1746203652838,1.07669,1856.7,1856.6,3.56879]
[1746203654740,4.28448,1856.8,1856.7,1.07669]
[1746203655235,3.2078,1856.8,1856.7,4.77269]
[1746203655445,1.07656,1857.0,1856.9,1.07657]
[1746203656435,1.0765,1857.1,1857.0,1.07646]
[1746203656838,4.28424,1857.2,1857.1,1.07646]
[1746203657440,1.07646,1857.1,1857.0,4.77247]
[1746203657640,1.49790066,1857.1,1857.0,4.77247]
[1746203658443,1.49790066,1857.1,1857.0,3.696]
[1746203658644,1.49790066,1857.1,1857.0,4.77252]
[1746203660943,1.49790066,1857.1,1857.0,3.696]
[1746203661143,1.49790066,1857.1,1857.0,4.77252]
[1746203661442,5.42144066,1857.1,1855.8,0.09372765]
[1746203661742,3.2078,1855.9,1855.4,10.49081724]
[1746203661941,4.28519,1855.5,1855.4,30.93793336]
[1746203662444,4.70663066,1855.5,1855.4,30.93793336]
[1746203663843,9.70663066,1855.5,1855.4,30.93793336]
[1746203664237,12.00983066,1855.5,1855.4,30.93793336]
[1746203664540,7.00983066,1855.5,1855.4,30.93793336]
[1746203664843,12.00983066,1855.5,1855.4,29.83637336]
[1746203665544,7.00983066,1855.5,1855.4,29.83637336]
[1746203666246,1.07762,1855.1,1854.9,2.5012]
[1746203666434,3.2078,1855.0,1854.9,5.709]
[1746203666633,3.2078,1855.0,1854.9,6.78673]
[1746203667132,3.2078,1855.0,1854.9,15.48273]
[1746203667836,3.2078,1855.4,1854.9,14.405]
[1746203668042,3.2078,1855.4,1855.3,1.0775]
[1746203668541,3.2078,1855.4,1855.3,6.0775]
[1746203669242,3.2078,1855.4,1855.3,9.7735]
[1746203670345,3.2078,1855.4,1855.3,4.7735]
[1746203672151,3.19985717,1855.4,1855.3,4.7735]
[1746203672646,4.27729717,1855.4,1855.3,4.7735]
[1746203673049,3.19985717,1855.4,1855.3,4.7735]
[1746203673246,4.27729717,1855.4,1855.3,4.7735]
[1746203673449,4.27729717,1855.4,1855.3,3.696]
[1746203673842,4.69618724,1855.4,1855.3,3.696]
[1746203674042,3.61874724,1855.4,1855.3,4.7735]
[1746203674242,3.2078,1855.7,1855.6,1.07733]
[1746203674444,4.28498,1855.9,1855.8,1.07721]
[1746203675153,4.28498,1855.9,1855.8,4.77321]
[1746203675344,3.2078,1855.9,1855.8,4.77321]
[1746203675544,4.28495,1855.9,1855.8,4.77321]
[1746203675742,3.2078,1855.9,1855.8,4.77321]
[1746203676246,4.28495,1855.9,1855.8,4.77321]
[1746203677752,4.28495,1855.9,1855.8,3.696]
[1746203679152,4.28495,1855.9,1855.8,4.77321]
[1746203679749,3.2078,1855.9,1855.8,4.77321]
[1746203679950,4.28488,1856.1,1856.0,1.0771]
[1746203680856,1.0771,1856.0,1855.9,3.6357]
[1746203681047,1.0771,1856.0,1855.9,2.5586]
[1746203681247,1.0771,1856.0,1855.9,6.2546]
[1746203682148,1.0771,1856.0,1855.9,7.33175]
[1746203683154,1.0771,1856.0,1855.9,3.63575]
[1746203683955,1.0771,1856.0,1855.9,2.5586]
[1746203684156,1.0771,1856.0,1855.9,7.33175]
[1746203685348,1.0771,1856.0,1855.9,3.63575]
[1746203685953,1.0771,1856.0,1855.9,2.5586]
[1746203686351,1.0771,1856.0,1855.9,3.63575]
[1746203686756,1.0771,1856.0,1855.9,2.5586]
[1746203687057,1.0771,1856.0,1855.9,3.63575]
[1746203687256,1.0771,1856.0,1855.9,7.33175]
[1746203687656,1.0771,1856.0,1855.9,6.2546]
[1746203688154,1.0771,1856.0,1855.9,7.33175]
[1746203690952,1.0771,1856.0,1855.9,6.2546]
[1746203691349,1.07703,1856.2,1856.0,3.76982]
[1746203691656,6.7672874,1856.8,1856.3,2.69231]
[1746203691954,3.5594874,1856.8,1856.7,1.07669]
[1746203692157,3.5594874,1856.8,1856.7,45.57269]
[1746203692762,3.5594874,1856.8,1856.7,47.82409]
[1746203693664,4.6361174,1856.8,1856.7,47.82409]
[1746203693858,3.5594874,1856.8,1856.7,47.82409]
[1746203694760,1.07659,1856.9,1856.8,1.07659]
[1746203695268,1.07663,1856.8,1856.7,46.7474]
[1746203695452,4.28443,1856.8,1856.7,46.7474]
[1746203696058,4.28443,1856.8,1856.7,5.9474]
[1746203697067,4.28443,1856.8,1856.7,7.02409]
[1746203697264,4.28443,1856.8,1856.7,3.32809]
[1746203697464,4.28443,1856.8,1856.7,2.2514]
[1746203698566,4.28443,1856.8,1856.7,3.32809]
[1746203699062,4.28443,1856.8,1856.7,7.02409]
[1746203700473,4.28443,1856.8,1856.7,5.9474]
[1746203700670,4.28443,1856.8,1856.7,7.02409]
[1746203701159,4.28443,1856.8,1856.7,3.32809]
[1746203701565,4.28443,1856.8,1856.7,2.2514]
[1746203701972,4.28443,1856.8,1856.7,3.32809]
[1746203703174,4.28443,1856.8,1856.7,7.02409]
[1746203703369,4.28443,1856.8,1856.7,5.9474]
[1746203703575,4.28443,1856.8,1856.7,7.02409]
[1746203704375,4.28443,1856.8,1856.7,3.32809]
[1746203704679,3.2078,1856.8,1856.7,3.32809]
[1746203704866,4.28443,1856.8,1856.7,3.32809]
[1746203705269,3.2078,1856.8,1856.7,3.32809]
[1746203705478,4.28443,1856.8,1856.7,3.32809]
[1746203706977,3.2078,1857.0,1856.9,1.07657]
[1746203707372,3.2078,1857.0,1856.9,3.19487]
[1746203707976,3.2078,1857.0,1856.9,3.35003278]
[1746203708177,3.2078,1857.0,1856.9,6.89087]
[1746203709876,4.28432,1857.0,1856.9,6.89087]
[1746203710181,3.2078,1857.0,1856.9,6.89087]
[1746203711473,3.2078,1857.3,1857.0,2.6913]
[1746203711674,4.28418,1857.3,1857.2,1.0764]
[1746203712079,1.07633,1857.4,1857.3,1.07634]
[1746203714075,1.07633,1857.4,1857.3,4.77234]
[1746203714574,3.2078,1857.5,1857.4,1.07628]
[1746203714778,4.28391,1857.7,1857.6,1.07617]
[1746203714972,3.2078,1857.7,1857.6,1.07617]
[1746203715179,4.28391,1857.7,1857.6,1.07617]
[1746203715378,3.2078,1857.7,1857.6,5.53577]
[1746203715577,3.5594874,1857.8,1857.7,1.07611]
[1746203715784,3.5594874,1857.8,1857.7,3.46131]
[1746203715976,4.6355374,1857.8,1857.7,3.46131]
[1746203717377,1.07605,1857.8,1857.7,3.46131]
[1746203718384,3.2078,1857.9,1857.8,1.07605]
[1746203718891,4.28379,1857.9,1857.8,1.07605]
[1746203720875,3.2078,1857.9,1857.8,1.07605]
[1746203721591,4.28379,1857.9,1857.8,1.07605]
[1746203721782,3.2078,1857.9,1857.8,1.07605]
[1746203722088,4.28379,1857.9,1857.8,1.07605]
[1746203722290,3.2078,1857.9,1857.8,1.07605]
[1746203722989,1.07605,1857.8,1857.7,2.3852]
[1746203723292,1.07617,1857.6,1857.5,1.07619]
[1746203723585,1.07617,1857.6,1857.5,3.46879]
[1746203723586,4.28397,1857.6,1857.5,3.46879]
[1746203724185,4.28397,1857.6,1857.5,7.16479]
[1746203725083,4.28397,1857.6,1857.5,7.16483]
[1746203725288,4.28397,1857.6,1857.5,3.46883]
[1746203725790,4.28397,1857.6,1857.5,2.3926]